bitfinex-derivatives/quotes_BNBF0:USTF0_20251225
["timestamp","ask_amount","ask_price","bid_price","bid_amount"]
[1766681500161,0.67986681,840.59,838.85,1.7729465]
[1766681500462,0.67986681,840.58,838.85,1.7729465]
[1766681500656,0.67986681,840.57,838.87,1.7729465]
[1766681500857,0.67986681,840.56,838.87,1.7729465]
[1766681501155,0.67986681,840.55,838.87,1.7729465]
[1766681501360,0.67986681,840.54,838.87,1.7729465]
[1766681501661,0.67986681,840.53,838.88,1.7729465]
[1766681501862,0.67986681,840.52,838.88,1.7729465]
[1766681502065,0.67986681,840.51,838.88,10.74773796]
[1766681502260,0.67986681,840.5,838.88,10.74773796]
[1766681502460,0.67986681,840.49,838.93,1.7729465]
[1766681502659,0.67986681,840.48,838.93,1.7729465]
[1766681502960,0.67986681,840.47,838.93,1.7729465]
[1766681503159,0.67986681,840.46,838.93,1.7729465]
[1766681503361,0.67986681,840.45,838.94,1.7729465]
[1766681503563,0.67986681,840.44,838.95,1.7729465]
[1766681503764,0.67986681,840.43,838.95,1.7729465]
[1766681504064,13.17051908,840.53,838.99,1.7729465]
[1766681504265,0.68047927,840.52,839.0,1.7729465]
[1766681504462,0.68047927,840.51,839.0,1.7729465]
[1766681504660,0.68047927,840.5,839.0,1.7729465]
[1766681504865,0.68047927,840.49,839.02,1.7729465]
[1766681505160,1.77817412,841.01,838.41,2.95491084]
[1766681505161,0.88661462,840.79,839.09,1.7729465]
[1766681505362,1.56721719,840.78,839.1,1.7729465]
[1766681505567,0.68060257,840.77,839.1,1.7729465]
[1766681506361,0.68060257,840.77,839.11,1.7729465]
[1766681507466,0.68060257,840.77,839.12,1.7729465]
[1766681508262,0.68060257,840.76,839.13,1.7729465]
[1766681508467,0.68060257,840.75,839.16,1.7729465]
[1766681508664,0.68060257,840.74,839.16,1.7729465]
[1766681508864,0.68060257,840.73,839.16,1.7729465]
[1766681509068,0.68060257,840.72,839.16,1.7729465]
[1766681509268,0.68060257,840.71,839.16,1.7729465]
[1766681509567,0.68060257,840.7,839.17,1.7729465]
[1766681509868,0.68060257,840.69,839.15,1.7729465]
[1766681510064,0.68060257,840.68,839.15,1.7729465]
[1766681510364,0.68060257,840.67,839.16,1.7729465]
[1766681510564,0.68060257,840.66,839.17,1.7729465]
[1766681510768,0.68060257,840.65,839.17,1.7729465]
[1766681510970,0.68060257,840.64,839.18,1.7729465]
[1766681511169,0.68060257,840.63,839.19,1.7729465]
[1766681511365,0.68060257,840.62,839.2,1.7729465]
[1766681511565,0.88661462,840.79,839.2,1.7729465]
[1766681511566,0.68060257,840.61,839.2,1.7729465]
[1766681511769,0.68060257,840.6,839.2,1.7729465]
[1766681512066,0.68060257,840.59,839.16,1.7729465]
[1766681512270,0.68060257,840.58,839.07,1.7729465]
[1766681512564,0.68060257,840.57,839.08,1.7729465]
[1766681512765,0.88661462,840.66,839.08,1.7729465]
[1766681512766,0.68060257,840.56,839.08,10.71465003]
[1766681512966,0.68060257,840.55,839.08,10.71465003]
[1766681513266,1.77817412,840.96,839.09,1.7729465]
[1766681513267,0.68060257,840.54,839.09,1.7729465]
[1766681513466,0.68060257,840.53,839.09,1.7729465]
[1766681513670,0.68060257,840.52,839.09,1.7729465]
[1766681513965,0.68060257,840.51,839.09,1.7729465]
[1766681514265,0.68060257,840.5,839.1,1.7729465]
[1766681514470,0.68060257,840.49,839.11,1.7729465]
[1766681514665,0.68060257,840.48,839.11,1.7729465]
[1766681514871,0.68060257,840.47,839.11,1.7729465]
[1766681515170,0.68060257,840.46,839.11,1.7729465]
[1766681515365,0.68060257,840.45,839.13,1.7729465]
[1766681515568,0.68060257,840.44,839.13,1.7729465]
[1766681515767,0.68060257,840.43,839.13,1.7729465]
[1766681515968,0.68060257,840.42,839.13,1.7729465]
[1766681516271,0.68060257,840.41,839.13,1.7729465]
[1766681516471,0.68060257,840.4,839.15,1.7729465]
[1766681516767,0.68060257,840.39,839.15,1.7729465]
[1766681516967,0.68060257,840.38,839.13,1.7729465]
[1766681517271,0.68060257,840.37,839.15,1.7729465]
[1766681517470,0.68060257,840.36,839.15,1.7729465]
[1766681517772,0.88661462,840.62,839.16,1.7729465]
[1766681517969,0.68320918,840.61,839.16,1.7729465]
[1766681518272,0.68320918,840.6,839.17,1.7729465]
[1766681518465,0.68320918,840.6,837.77,5.90982169]
[1766681518466,0.68320918,840.59,839.18,1.7729465]
[1766681518671,0.68320918,840.58,839.18,1.7729465]
[1766681518866,0.68320918,840.57,839.18,1.7729465]
[1766681519070,0.68320918,840.56,839.18,1.7729465]
[1766681519267,0.68320918,840.55,839.19,1.7729465]
[1766681519466,0.88661462,840.31,838.89,1.7729465]
[1766681519670,0.68320918,840.3,838.89,1.7729465]
[1766681519870,0.68320918,840.29,838.89,1.7729465]
[1766681520072,0.68320918,840.28,838.91,1.7729465]
[1766681520372,0.68320918,840.27,839.01,1.7729465]
[1766681520570,0.68320918,840.26,839.01,1.7729465]
[1766681520767,0.68320918,840.25,839.01,1.7729465]
[1766681520972,0.68320918,840.24,839.01,1.7729465]
[1766681521172,0.68320918,840.23,839.01,1.7729465]
[1766681521371,0.68320918,840.22,839.01,1.7729465]
[1766681521569,0.68320918,840.21,839.01,1.7729465]
[1766681521774,0.68320918,840.2,839.01,1.7729465]
[1766681521970,0.68320918,840.19,839.03,1.7729465]
[1766681522275,0.68320918,840.18,839.03,1.7729465]
[1766681522570,0.68320918,840.17,839.03,1.7729465]
[1766681522774,0.68320918,840.16,839.03,1.7729465]
[1766681522975,0.68320918,840.15,839.03,1.7729465]
[1766681523172,0.88661462,840.42,839.03,1.7729465]
[1766681523378,0.68369497,840.41,839.04,1.7729465]
[1766681523576,0.68369497,840.4,839.04,10.79274919]
[1766681523876,0.68369497,840.39,839.04,10.79274919]
[1766681524176,0.68369497,840.38,839.04,10.79274919]
[1766681524372,0.68369497,840.37,839.05,1.7729465]
[1766681524571,0.68369497,840.36,839.05,1.7729465]
[1766681524776,0.68369497,840.35,839.05,1.7729465]
[1766681524975,0.68369497,840.34,839.05,1.7729465]
[1766681525277,0.68369497,840.33,839.05,1.7729465]
[1766681525577,0.68369497,840.32,839.1,1.7729465]
[1766681525876,0.68369497,840.31,839.1,1.7729465]
[1766681526074,0.68369497,840.3,839.1,1.7729465]
[1766681526274,0.68369497,840.29,839.1,1.7729465]
[1766681526472,0.68369497,840.28,839.14,1.7729465]
[1766681526676,12.73312856,840.41,839.14,1.7729465]
[1766681526677,0.68369497,840.27,839.14,1.7729465]
[1766681526875,0.68369497,840.26,839.14,1.7729465]
[1766681527174,0.68369497,840.25,839.14,1.7729465]
[1766681527373,56.04429538,840.8,839.15,1.7729465]
[1766681527374,0.68369497,840.24,839.15,1.7729465]
[1766681527576,0.68369497,840.23,839.15,1.7729465]
[1766681527775,0.68369497,840.22,839.15,1.7729465]
[1766681527973,0.68369497,840.21,839.15,1.7729465]
[1766681528176,0.68369497,840.2,839.15,1.7729465]
[1766681528375,0.68369497,840.19,839.16,1.7729465]
[1766681528571,0.88661462,840.46,839.16,1.7729465]
[1766681528775,0.68440559,840.45,839.16,1.7729465]
[1766681528977,0.68440559,840.44,839.16,1.7729465]
[1766681529274,0.68440559,840.43,839.17,1.7729465]
[1766681529472,0.68440559,840.42,839.17,1.7729465]
[1766681529671,0.88661462,840.45,839.17,1.7729465]
[1766681529672,0.68440559,840.41,839.17,1.7729465]
[1766681529876,0.68440559,840.4,839.17,1.7729465]
[1766681530078,0.68440559,840.39,839.17,1.7729465]
[1766681530278,0.68440559,840.38,839.17,1.7729465]
[1766681530477,0.68440559,840.37,839.17,1.7729465]
[1766681530676,0.68440559,840.36,839.17,1.7729465]
[1766681530878,0.68440559,840.35,839.17,1.7729465]
[1766681531078,0.68440559,840.34,839.17,1.7729465]
[1766681531279,0.68440559,840.33,839.17,1.7729465]
[1766681531475,0.68440559,840.32,839.18,1.7729465]
[1766681531682,0.68440559,840.31,839.18,1.7729465]
[1766681531881,0.68440559,840.3,839.18,1.7729465]
[1766681532081,0.68440559,840.29,839.18,1.7729465]
[1766681532376,0.68440559,840.28,839.18,1.7729465]
[1766681532576,0.68440559,840.27,839.18,1.7729465]
[1766681532780,0.68440559,840.26,839.18,1.7729465]
[1766681533081,0.68440559,840.25,839.18,1.7729465]
[1766681533281,0.68440559,840.24,839.18,1.7729465]
[1766681533580,0.68440559,840.23,839.18,1.7729465]
[1766681533778,0.68440559,840.22,839.18,1.7729465]
[1766681533982,0.68440559,840.21,839.18,1.7729465]
[1766681534182,0.68440559,840.2,839.18,1.7729465]
[1766681534383,0.68440559,840.19,839.19,1.7729465]
[1766681534583,0.68440559,840.18,839.19,1.7729465]
[1766681534783,0.68440559,840.17,839.19,1.7729465]
[1766681534984,12.98193728,840.28,839.19,1.7729465]
[1766681535186,0.68471807,840.27,839.19,1.7729465]
[1766681535483,0.68471807,840.26,839.19,1.7729465]
[1766681535685,0.68471807,840.25,839.19,1.7729465]
[1766681535883,12.98193728,840.28,839.19,1.7729465]
[1766681535884,0.68471807,840.24,839.19,1.7729465]
[1766681536180,0.68471807,840.23,839.19,1.7729465]
[1766681536384,0.68471807,840.22,839.18,1.7729465]
[1766681536586,0.68471807,840.21,839.18,1.7729465]
[1766681536885,0.68471807,840.2,839.18,1.7729465]
[1766681537084,0.68471807,840.19,839.18,1.7729465]
[1766681537283,0.68471807,840.18,839.19,1.7729465]
[1766681537485,0.88661462,840.44,839.19,1.7729465]
[1766681537686,0.68114118,840.43,839.19,10.83848679]
[1766681537982,0.68114118,840.42,839.19,10.83848679]
[1766681538187,0.68114118,840.41,839.19,10.83848679]
[1766681538387,0.68114118,840.4,839.19,10.83848679]
[1766681538685,0.68114118,840.39,839.19,10.83848679]
[1766681538885,0.68114118,840.38,839.19,10.83848679]
[1766681539185,0.68114118,840.37,839.19,10.83848679]
[1766681539480,0.68114118,840.36,839.19,10.83848679]
[1766681539681,0.68114118,840.35,839.19,10.83848679]
[1766681539885,0.68114118,840.34,839.19,10.83848679]
[1766681540085,0.68114118,840.33,839.19,10.83848679]
[1766681540384,0.68114118,840.32,839.19,10.83848679]
[1766681540585,0.68114118,840.31,839.19,10.83848679]
[1766681540787,0.88661462,840.44,839.19,10.83848679]
[1766681540986,0.68126206,840.43,839.19,1.7729465]
[1766681541185,0.68126206,840.42,839.19,1.7729465]
[1766681541387,0.68126206,840.41,839.2,1.7729465]
[1766681541588,0.68126206,840.4,839.2,1.7729465]
[1766681541887,0.68126206,840.39,839.2,1.7729465]
[1766681542087,0.68126206,840.38,839.2,1.7729465]
[1766681542286,0.68126206,840.37,839.2,1.7729465]
[1766681542488,0.68126206,840.36,839.2,1.7729465]
[1766681542685,0.68126206,840.35,839.2,1.7729465]
[1766681542989,0.68126206,840.34,839.2,1.7729465]
[1766681543189,0.68126206,840.33,839.2,1.7729465]
[1766681543389,0.68126206,840.32,839.2,1.7729465]
[1766681543586,0.68126206,840.31,839.2,1.7729465]
[1766681543788,0.68126206,840.3,839.2,1.7729465]
[1766681543990,0.68126206,840.29,839.21,1.7729465]
[1766681544186,0.68126206,840.29,837.52,0.17755752]
[1766681544187,0.68126206,840.28,839.28,1.7729465]
[1766681544488,12.82582352,840.35,839.33,1.7729465]
[1766681544686,0.68162084,840.34,839.33,1.7729465]
[1766681544888,0.68162084,840.33,839.33,1.7729465]
[1766681545087,0.68162084,840.32,839.33,1.7729465]
[1766681545390,0.68162084,840.31,839.33,1.7729465]
[1766681545588,0.68162084,840.3,839.33,1.7729465]
[1766681545790,0.68162084,840.29,839.33,1.7729465]
[1766681545994,12.82582352,840.35,839.33,1.7729465]
[1766681546193,0.68161465,840.34,839.33,1.7729465]
[1766681546393,0.68161465,840.33,839.33,1.7729465]
[1766681546694,12.82582352,840.35,839.4,1.7729465]
[1766681547190,12.82582352,840.35,839.41,1.7729465]
[1766681547393,12.82582352,840.35,839.42,1.7729465]
[1766681547590,0.88661462,840.67,839.43,1.7729465]
[1766681547794,0.6816221,840.66,839.43,1.7729465]
[1766681547993,0.6816221,840.65,839.43,1.7729465]
[1766681548194,0.6816221,840.64,839.43,1.7729465]
[1766681548393,0.88661462,840.67,839.43,1.7729465]
[1766681548394,0.6816221,840.63,839.43,1.7729465]
[1766681548592,0.6816221,840.62,839.43,1.7729465]
[1766681548892,0.6816221,840.61,839.43,1.7729465]
[1766681549092,0.6816221,840.6,839.43,1.7729465]
[1766681549296,0.6816221,840.59,839.43,1.7729465]
[1766681549596,0.6816221,840.58,839.43,1.7729465]
[1766681549796,0.6816221,840.57,839.43,1.7729465]
[1766681550094,0.6816221,840.56,839.43,1.7729465]
[1766681550296,0.6816221,840.55,839.43,1.7729465]
[1766681550496,0.6816221,840.54,839.43,1.7729465]
[1766681550695,0.6816221,840.53,839.43,1.7729465]
[1766681550893,0.6816221,840.52,839.43,1.7729465]
[1766681551196,0.6816221,840.51,839.43,1.7729465]
[1766681551496,0.6816221,840.5,839.42,1.7729465]
[1766681551793,0.6816221,840.49,839.42,1.7729465]
[1766681551998,0.6816221,840.48,839.42,1.7729465]
[1766681552192,0.6816221,840.47,839.42,1.7729465]
[1766681552397,0.88661462,840.69,839.43,1.7729465]
[1766681552695,0.68151672,840.68,839.56,1.7729465]
[1766681552898,0.68151672,840.67,839.56,10.60568624]
[1766681553398,0.68151672,840.67,839.56,8.83273974]
[1766681553698,0.68151672,840.67,839.56,10.60568624]
[1766681554195,0.68151672,840.67,839.6,1.7729465]
[1766681554394,13.13235512,840.68,839.77,1.7729465]
[1766681555298,13.13235512,840.68,839.75,1.7729465]
[1766681555594,13.13235512,840.68,839.76,1.7729465]
[1766681555798,0.88661462,841.28,839.9,1.7729465]
[1766681556097,0.68060649,841.18,839.95,1.7729465]
[1766681556298,0.68060649,841.17,839.95,1.7729465]
[1766681556493,0.68060649,841.16,839.91,1.7729465]
[1766681556694,0.68060649,841.15,839.91,1.7729465]
[1766681556996,0.68060649,841.14,839.91,1.7729465]
[1766681557197,0.68060649,841.13,839.92,1.7729465]
[1766681557492,0.68060649,841.13,839.39,55.27997708]
[1766681557493,12.7318871,841.18,839.88,1.7729465]
[1766681557693,0.679092,841.17,839.88,1.7729465]
[1766681557898,0.679092,841.16,839.88,1.7729465]
[1766681558097,0.679092,841.15,839.88,1.7729465]
[1766681558297,12.7318871,841.18,839.85,1.7729465]
[1766681559402,12.7318871,841.18,839.82,1.7729465]
[1766681559999,12.7318871,841.18,839.79,1.7729465]
[1766681560000,0.6779346,841.17,839.79,1.7729465]
[1766681560202,0.6779346,841.16,839.78,1.7729465]
[1766681560503,12.7318871,841.18,839.74,1.7729465]
[1766681560799,0.67752087,841.17,839.74,1.7729465]
[1766681561003,0.88661462,841.44,839.74,1.7729465]
[1766681561202,0.67752087,841.18,839.74,1.7729465]
[1766681561504,0.88661462,841.45,839.72,1.7729465]
[1766681561700,0.88661462,841.45,839.11,2.95491084]
[1766681561701,0.67715787,841.18,839.67,1.7729465]
[1766681561904,0.67715787,841.17,839.67,1.7729465]
[1766681562106,0.67715787,841.16,839.67,1.7729465]
[1766681562302,0.67715787,841.15,839.67,1.7729465]
[1766681562508,0.67715787,841.14,839.65,1.7729465]
[1766681562706,0.88661462,841.41,839.65,1.7729465]
[1766681562902,0.67684654,841.18,839.65,1.7729465]
[1766681563102,0.67684654,841.17,839.65,1.7729465]
[1766681563306,0.67684654,841.16,839.63,1.7729465]
[1766681563607,0.67684654,841.15,839.63,1.7729465]
[1766681563807,0.88661462,841.42,839.63,1.7729465]
[1766681564113,0.67659255,841.18,839.63,1.7729465]
[1766681564309,0.67659255,841.17,839.62,1.7729465]
[1766681564508,0.67659255,841.16,839.62,1.7729465]
[1766681564708,0.88661462,841.43,839.62,1.7729465]
[1766681564911,0.67636261,841.18,839.62,1.7729465]
[1766681565111,13.85497207,841.17,839.62,1.7729465]
[1766681565313,0.67636261,841.16,839.6,1.7729465]
[1766681566514,0.67636261,841.16,839.59,1.7729465]
[1766681567214,13.17860946,841.17,839.6,1.7729465]
[1766681567513,13.17860946,841.17,839.0,2.95491084]
[1766681567514,13.17860946,841.17,839.59,1.7729465]
[1766681568413,0.67290416,841.16,839.58,1.7729465]
[1766681568614,0.88661462,841.43,839.58,1.7729465]
[1766681568816,0.67290416,841.18,839.58,1.7729465]
[1766681569010,0.67290416,841.17,839.58,1.7729465]
[1766681569313,0.67290416,841.16,839.58,1.7729465]
[1766681569512,0.88661462,841.43,839.58,1.7729465]
[1766681569714,0.67285972,841.18,839.58,1.7729465]
[1766681569910,0.67285972,841.17,839.58,1.7729465]
[1766681570210,0.67285972,841.16,839.58,1.7729465]
[1766681570414,0.88661462,841.43,839.57,1.7729465]
[1766681570612,0.67283918,841.18,839.57,1.7729465]
[1766681570812,0.67283918,841.17,839.57,1.7729465]
[1766681571014,0.67283918,841.16,839.57,1.7729465]
[1766681571217,0.88661462,841.43,839.57,1.7729465]
[1766681571414,0.67281699,841.18,839.57,1.7729465]
[1766681571718,0.67281699,841.17,839.57,1.7729465]
[1766681571916,0.67281699,841.16,839.57,1.7729465]
[1766681572118,0.88661462,841.43,839.57,1.7729465]
[1766681572320,0.67281699,841.18,839.56,1.7729465]
[1766681572619,0.67281699,841.17,839.56,1.7729465]
[1766681572919,0.67281699,841.16,839.56,1.7729465]
[1766681573118,0.67281699,841.15,839.56,1.7729465]
[1766681573318,0.88661462,841.42,839.56,1.7729465]
[1766681573515,0.67279952,841.18,839.56,1.7729465]
[1766681573719,0.67279952,841.17,839.56,1.7729465]
[1766681574013,0.67279952,841.16,839.56,1.7729465]
[1766681574220,0.67279952,841.15,839.56,1.7729465]
[1766681574420,0.88661462,841.42,839.56,1.7729465]
[1766681574620,0.67282015,841.18,839.56,1.7729465]
[1766681574821,0.67282015,841.17,839.56,1.7729465]
[1766681575116,0.67282015,841.16,839.56,1.7729465]
[1766681575316,0.67282015,841.15,839.56,1.7729465]
[1766681575516,0.67282015,841.14,839.56,1.7729465]
[1766681575720,0.88661462,841.41,839.56,1.7729465]
[1766681575922,0.6728604,841.18,839.56,1.7729465]
[1766681576121,0.6728604,841.17,839.56,1.7729465]
[1766681576417,0.6728604,841.16,839.56,1.7729465]
[1766681576621,0.6728604,841.15,839.56,1.7729465]
[1766681576820,0.6728604,841.14,839.56,1.7729465]
[1766681577119,0.88661462,841.41,839.56,1.7729465]
[1766681577420,0.67293242,841.18,839.56,1.7729465]
[1766681577620,0.67293242,841.17,839.56,1.7729465]
[1766681577820,0.67293242,841.16,839.56,1.7729465]
[1766681578020,0.67293242,841.15,839.56,1.7729465]
[1766681578220,0.67293242,841.14,839.56,1.7729465]
[1766681578416,0.67293242,841.13,839.56,1.7729465]
[1766681578720,0.67293242,841.12,839.56,1.7729465]
[1766681579321,0.67293242,841.12,839.57,1.7729465]
[1766681581325,13.06351109,841.13,839.6,1.7729465]
[1766681581621,0.6735062,841.12,839.6,1.7729465]
[1766681581822,13.06351109,841.13,839.63,1.7729465]
[1766681582021,0.88661462,841.46,839.67,1.7729465]
[1766681582321,0.67370102,841.18,839.68,1.7729465]
[1766681582520,0.88661462,841.45,839.68,1.7729465]
[1766681582720,0.67370105,841.18,839.68,1.7729465]
[1766681583019,0.88661462,841.45,839.68,1.7729465]
[1766681583219,0.67370114,841.18,839.68,1.7729465]
[1766681583424,1.77817412,841.75,839.07,2.95491084]
[1766681583425,0.67370114,841.17,839.69,1.7729465]
[1766681583725,0.88661462,841.44,839.69,1.7729465]
[1766681583925,0.67388619,841.18,839.69,1.7729465]
[1766681584224,0.67388619,841.17,839.69,1.7729465]
[1766681584423,0.67388619,841.16,839.7,1.7729465]
[1766681584620,0.88661462,841.43,839.7,1.7729465]
[1766681584826,0.67410565,841.18,839.7,1.7729465]
[1766681585022,0.67410565,841.17,839.7,1.7729465]
[1766681585221,0.67410565,841.16,839.7,1.7729465]
[1766681585424,0.67410565,841.15,839.71,1.7729465]
[1766681585625,0.88661462,841.42,839.71,1.7729465]
[1766681585822,0.67436322,841.18,839.71,1.7729465]
[1766681586021,0.67436322,841.17,839.71,1.7729465]
[1766681586220,0.88661462,841.44,839.73,1.7729465]
[1766681586426,0.67466778,841.18,839.75,1.7729465]
[1766681586623,0.67466778,841.17,839.75,1.7729465]
[1766681586825,0.67466778,841.16,839.75,1.7729465]
[1766681587027,0.67466778,841.15,839.75,1.7729465]
[1766681587224,0.88661462,841.42,839.75,1.7729465]
[1766681587428,0.67500781,841.18,839.77,1.7729465]
[1766681587625,0.67500781,841.17,839.76,1.7729465]
[1766681587928,0.67500781,841.16,839.76,10.69235021]
[1766681588129,0.67500781,841.15,839.76,10.69235021]
[1766681588328,12.75104223,841.17,839.76,10.69235021]
[1766681588329,0.67500781,841.14,839.78,1.7729465]
[1766681588524,0.67500781,841.13,839.78,1.7729465]
[1766681588729,0.67500781,841.12,839.78,1.7729465]
[1766681589030,0.67500781,841.11,839.78,1.7729465]
[1766681589229,12.75104223,841.17,839.78,1.7729465]
[1766681589529,0.67568989,841.16,839.79,1.7729465]
[1766681589730,0.67568989,841.15,839.79,1.7729465]
[1766681589929,0.67568989,841.14,839.79,1.7729465]
[1766681590231,0.67568989,841.13,839.8,1.7729465]
[1766681590428,0.67568989,841.12,839.81,1.7729465]
[1766681590631,0.67568989,841.11,839.81,1.7729465]
[1766681590832,0.67568989,841.1,839.81,1.7729465]
[1766681591032,0.67568989,841.09,839.81,1.7729465]
[1766681591329,0.67568989,841.08,839.84,1.7729465]
[1766681591529,0.67568989,841.07,839.84,1.7729465]
[1766681591730,0.67568989,841.06,839.84,1.7729465]
[1766681591934,0.88661462,841.33,839.84,1.7729465]
[1766681592129,0.67640968,841.18,839.84,1.7729465]
[1766681592433,0.67640968,841.17,839.86,1.7729465]
[1766681592631,0.67640968,841.16,839.86,1.7729465]
[1766681592831,0.67640968,841.15,839.86,1.7729465]
[1766681593030,0.67640968,841.14,839.86,1.7729465]
[1766681593237,0.67640968,841.13,839.86,1.7729465]
[1766681593531,0.67640968,841.12,839.88,1.7729465]
[1766681593732,0.67640968,841.11,839.88,1.7729465]
[1766681593936,0.67640968,841.1,839.88,1.7729465]
[1766681594135,0.67640968,841.09,839.88,1.7729465]
[1766681594432,0.67640968,841.08,839.9,1.7729465]
[1766681594633,0.67640968,841.07,839.9,1.7729465]
[1766681594831,0.67640968,841.06,839.9,1.7729465]
[1766681595032,0.67640968,841.05,839.9,1.7729465]
[1766681595232,0.67640968,841.04,839.9,1.7729465]
[1766681595436,0.67640968,841.03,839.93,1.7729465]
[1766681595633,0.67640968,841.02,839.93,1.7729465]
[1766681595836,0.67640968,841.01,839.93,1.7729465]
[1766681596034,0.67640968,841.0,839.93,1.7729465]
[1766681596234,0.88661462,841.27,839.93,1.7729465]
[1766681596437,0.67848321,841.18,839.96,1.7729465]
[1766681596633,0.67848321,841.17,839.96,1.7729465]
[1766681596838,0.67848321,841.16,839.96,1.7729465]
[1766681597041,0.67848321,841.15,839.96,1.7729465]
[1766681597235,0.67848321,841.14,839.97,1.7729465]
[1766681597536,0.67848321,841.13,840.01,1.7729465]
[1766681597740,0.67848321,841.12,840.01,1.7729465]
[1766681598041,0.67848321,841.11,840.01,1.7729465]
[1766681598237,0.67848321,841.1,840.01,1.7729465]
[1766681598442,0.67848321,841.09,840.05,1.7729465]
[1766681598637,0.67848321,841.08,840.05,1.7729465]
[1766681598936,0.67848321,841.07,840.05,1.7729465]
[1766681599140,0.67848321,841.06,840.05,1.7729465]
[1766681599340,0.67848321,841.05,840.07,1.7729465]
[1766681599636,0.67848321,841.04,840.07,1.7729465]
[1766681599841,0.67848321,841.03,840.07,1.7729465]
[1766681600141,0.67848321,841.02,840.05,1.7729465]
[1766681600438,0.67848321,841.01,840.07,1.7729465]
[1766681600640,0.67848321,841.0,840.07,1.7729465]
[1766681600840,0.67848321,840.99,840.07,1.7729465]
[1766681601038,0.67848321,840.98,840.07,1.7729465]
[1766681601241,0.67848321,840.97,840.07,1.7729465]
[1766681601442,0.67848321,840.96,840.08,1.7729465]
[1766681601738,0.67848321,840.95,840.08,1.7729465]
[1766681601936,0.67848321,840.94,840.08,1.7729465]
[1766681602136,0.67848321,840.93,840.08,1.7729465]
[1766681602341,0.67848321,840.92,840.09,1.7729465]
[1766681602539,0.67848321,840.91,840.03,1.7729465]
[1766681602838,0.67848321,840.9,840.03,1.7729465]
[1766681603042,0.67848321,840.89,840.03,1.7729465]
[1766681603338,0.67848321,840.88,840.04,1.7729465]
[1766681603544,0.67848321,840.87,840.04,1.7729465]
[1766681603742,0.88661462,841.14,840.04,1.7729465]
[1766681603939,0.68024574,841.13,840.04,10.78245897]
[1766681604143,0.68024574,841.12,840.04,10.78245897]
[1766681604343,0.68024574,841.11,840.04,10.78245897]
[1766681604543,0.68024574,841.1,840.04,10.78245897]
[1766681604843,0.68024574,841.09,840.04,10.78245897]
[1766681605144,0.68024574,841.08,840.04,10.78245897]
[1766681605339,0.68024574,841.07,840.04,10.78245897]
[1766681605640,0.68024574,841.06,840.04,10.78245897]
[1766681605843,0.68024574,841.05,840.04,10.78245897]
[1766681606044,0.68024574,841.04,840.04,10.78245897]
[1766681606247,0.68024574,841.03,840.04,10.78245897]
[1766681606546,0.68024574,841.02,840.04,10.78245897]
[1766681606845,0.68024574,841.01,840.04,9.00951247]
[1766681607141,0.68024574,841.0,840.04,9.00951247]
[1766681607445,0.68024574,840.99,840.02,1.7729465]
[1766681607740,0.68024574,840.98,840.02,1.7729465]
[1766681607943,0.68024574,840.97,840.02,1.7729465]
[1766681608143,0.68024574,840.96,840.02,1.7729465]
[1766681608346,0.68024574,840.95,840.02,1.7729465]
[1766681608644,0.68024574,840.94,840.02,1.7729465]
[1766681608846,0.68024574,840.93,840.01,1.7729465]
[1766681609047,0.68024574,840.92,840.01,1.7729465]
[1766681609348,0.68024574,840.91,840.01,1.7729465]
[1766681609646,0.68024574,840.9,840.01,1.7729465]
[1766681609841,0.68024574,840.89,840.01,1.7729465]
[1766681610045,0.68024574,840.88,840.01,1.7729465]
[1766681610343,0.68024574,840.87,840.01,1.7729465]
[1766681610642,0.68024574,840.86,839.95,1.7729465]
[1766681610848,0.68024574,840.85,839.95,1.7729465]
[1766681611146,0.68024574,840.84,839.95,1.7729465]
[1766681611347,0.68024574,840.83,839.95,1.7729465]
[1766681611547,0.68024574,840.82,839.95,1.7729465]
[1766681611746,0.68024574,840.81,839.95,1.7729465]
[1766681611946,0.68024574,840.8,839.95,1.7729465]
[1766681612147,0.68024574,840.79,839.95,1.7729465]
[1766681612447,13.17945412,840.93,839.95,1.7729465]
[1766681612644,0.68018048,840.92,839.95,1.7729465]
[1766681612844,13.17945412,840.93,839.95,1.7729465]
[1766681612845,0.68018048,840.91,839.95,1.7729465]
[1766681613045,0.68018048,840.9,839.95,1.7729465]
[1766681613247,0.68018048,840.89,839.95,1.7729465]
[1766681613447,0.68018048,840.88,839.95,1.7729465]
[1766681613643,0.68018048,840.87,839.95,1.7729465]
[1766681613847,0.68018048,840.86,839.95,1.7729465]
[1766681614048,0.68018048,840.85,839.95,1.7729465]
[1766681614249,0.68018048,840.84,839.94,1.7729465]
[1766681614549,0.68018048,840.83,839.94,1.7729465]
[1766681614747,0.68018048,840.82,839.94,1.7729465]
[1766681614949,0.68018048,840.81,839.94,1.7729465]
[1766681615150,0.68018048,840.8,839.94,1.7729465]
[1766681615344,0.88661462,841.07,839.94,1.7729465]
[1766681615546,13.60887084,841.06,839.94,1.7729465]
[1766681615746,0.68004459,841.05,839.94,1.7729465]
[1766681615949,0.68004459,841.04,839.94,1.7729465]
[1766681616246,0.68004459,841.03,839.94,1.7729465]
[1766681616446,0.68004459,841.02,839.94,1.7729465]
[1766681616649,0.68004459,841.01,839.94,1.7729465]
[1766681616847,0.68004459,841.0,839.94,1.7729465]
[1766681617051,0.68004459,840.99,839.94,1.7729465]
[1766681617252,0.68004459,840.98,839.94,1.7729465]